bitfinex-derivatives/quotes_ETHF0:USTF0_20250503
["timestamp","ask_amount","ask_price","bid_price","bid_amount"]
[1746270711462,19.08552386,1820.9,1820.8,1.66886609]
[1746270713264,13.30734386,1820.9,1820.8,1.66886609]
[1746270713859,13.30734386,1820.9,1820.8,3.32976609]
[1746270714261,9.58934386,1820.9,1820.8,3.32976609]
[1746270715157,7.78031667,1820.9,1820.8,3.32976609]
[1746270720366,7.78031667,1820.9,1820.8,1.66886609]
[1746270720570,9.25461667,1820.9,1820.8,1.66886609]
[1746270720970,10.35269667,1820.9,1820.8,1.66886609]
[1746270721169,17.27849667,1820.9,1820.8,1.66886609]
[1746270722770,16.18041667,1820.9,1820.8,1.66886609]
[1746270723665,12.97261667,1820.9,1820.8,1.66886609]
[1746270723872,16.18041667,1820.9,1820.8,1.66886609]
[1746270724874,10.70908685,1820.9,1820.8,1.66886609]
[1746270725067,7.50128685,1820.9,1820.8,1.66886609]
[1746270725372,10.70908685,1820.9,1820.8,1.66886609]
[1746270729172,6.02698685,1820.9,1820.8,1.66886609]
[1746270729374,6.02698685,1820.9,1820.8,3.14006609]
[1746270731075,4.41818685,1820.9,1820.8,3.14006609]
[1746270731281,0.70018685,1820.9,1820.8,8.14006609]
[1746270731581,6.17078778,1820.9,1820.8,9.74726609]
[1746270732783,0.09868055,1821.1,1821.0,1.61048755]
[1746270732985,0.09868055,1821.1,1821.0,4.81828755]
[1746270733184,0.09868055,1821.1,1821.0,14.25507681]
[1746270733377,0.09868055,1821.1,1821.0,15.73387681]
[1746270734284,0.09868055,1821.1,1821.0,56.53387681]
[1746270735197,13.54624317,1821.4,1821.3,1.09784]
[1746270735495,13.54624317,1821.4,1821.3,5.15530755]
[1746270735889,5.36219369,1821.6,1821.5,1.09772]
[1746270736089,5.36219369,1821.6,1821.5,1.61018755]
[1746270736297,5.36219369,1821.6,1821.5,1.81650926]
[1746270736596,5.36219369,1821.6,1821.5,3.44420926]
[1746270737296,9.08019369,1821.6,1821.5,3.44420926]
[1746270738497,9.08019369,1821.6,1821.5,3.44234366]
[1746270739597,5.4356,1821.6,1821.5,3.44234366]
[1746270742296,5.4356,1821.6,1821.5,3.95481121]
[1746270742495,3.718,1821.6,1821.5,3.95481121]
[1746270742998,3.718,1821.6,1821.5,44.75481121]
[1746270743297,3.2078,1821.7,1821.6,1.09766]
[1746270743499,4.8258,1821.7,1821.6,6.83002755]
[1746270743796,4.8258,1821.7,1821.6,7.54695121]
[1746270744497,1.618,1821.7,1821.6,7.54695121]
[1746270746196,1.618,1821.7,1821.6,10.75475121]
[1746270746992,5.05509369,1821.9,1821.8,1.09754]
[1746270747206,3.1279,1821.9,1821.8,2.32693121]
[1746270748099,1.7174,1821.9,1821.8,2.32693121]
[1746270748399,1.7174,1821.9,1821.8,3.92933121]
[1746270752100,1.7174,1821.9,1821.8,2.32693121]
[1746270752294,1.7174,1821.9,1821.8,1.61000755]
[1746270752809,1.7174,1821.9,1821.8,2.32526524]
[1746270755310,5.4354,1821.9,1821.8,2.32526524]
[1746270762313,1.7174,1821.9,1821.8,2.32526524]
[1746270763217,1.7174,1821.9,1821.8,5.13426524]
[1746270766421,1.7174,1821.9,1821.8,5.13752033]
[1746270767512,1.7174,1821.9,1821.8,2.32852033]
[1746270771223,1.7174,1821.9,1821.8,3.98162033]
[1746270771522,1.7174,1821.9,1821.8,7.18942033]
[1746270772619,1.7174,1821.9,1821.8,6.67695278]
[1746270772824,3.1128,1822.3,1822.2,1.09729]
[1746270773024,4.5506,1822.3,1822.2,4.63529]
[1746270773225,8.2686,1822.3,1822.2,4.63529]
[1746270773421,8.2686,1822.3,1822.2,5.35380278]
[1746270776930,8.2686,1822.3,1822.2,4.63529]
[1746270785331,6.7931,1822.3,1822.2,5.14775755]
[1746270785528,6.7931,1822.3,1822.2,6.58165755]
[1746270786433,6.7931,1822.3,1822.2,5.14775755]
[1746270789036,6.7931,1822.3,1822.2,5.8518283]
[1746270795941,7.89033,1822.3,1822.2,5.33936075]
[1746270796138,7.89033,1822.3,1822.2,4.24207075]
[1746270796342,6.7931,1822.3,1822.2,5.33936075]
[1746270799442,12.96348781,1822.3,1822.2,5.33936075]
[1746270804136,6.7931,1822.3,1822.2,5.33936075]
[1746270805844,6.7931,1822.3,1822.2,5.8518283]
[1746270806045,6.7931,1822.3,1822.2,7.1995283]
[1746270806351,6.7931,1822.3,1822.2,6.49545755]
[1746270810252,6.7931,1822.3,1822.2,4.63529]
[1746270810639,6.7931,1822.3,1822.2,5.14775755]
[1746270810836,6.7931,1822.3,1822.2,6.57725755]
[1746270811042,6.7931,1822.3,1822.2,5.14775755]
[1746270812555,11.14066742,1822.3,1822.2,5.14775755]
[1746270815453,11.14066742,1822.3,1822.2,6.55755755]
[1746270815754,10.44104427,1822.3,1822.2,6.55755755]
[1746270823269,11.14066013,1822.3,1822.2,6.55755755]
[1746270823757,11.14066013,1822.3,1822.2,7.26689898]
[1746270824563,11.14066013,1822.3,1822.2,6.55755755]
[1746270827966,11.14066013,1822.3,1822.2,5.14775755]
[1746270829863,12.96344029,1822.3,1822.2,5.14775755]
[1746270831166,12.96344029,1822.3,1822.2,4.63529]
[1746270837567,14.06067029,1822.3,1822.2,4.63529]
[1746270838471,12.96344029,1822.3,1822.2,4.63529]
[1746270839170,7.49271586,1822.3,1822.2,4.63529]
[1746270842574,8.58994586,1822.3,1822.2,4.63529]
[1746270843075,8.58994586,1822.3,1822.2,3.538]
[1746270844276,13.58994586,1822.3,1822.2,3.538]
[1746270844573,13.58994586,1822.3,1822.2,4.25541432]
[1746270845574,8.58994586,1822.3,1822.2,4.25541432]
[1746270846775,8.58994586,1822.3,1822.2,0.71741432]
[1746270847075,25.64116177,1822.3,1822.2,0.71741432]
[1746270847778,1.09742,1822.0,1821.9,4.62744]
[1746270848172,1.0974,1822.1,1822.0,1.09742]
[1746270848367,4.1799,1822.1,1822.0,1.60988755]
[1746270848572,4.1799,1822.1,1822.0,1.09742]
[1746270849178,7.8979,1822.1,1822.0,1.09742]
[1746270850275,13.36525093,1822.1,1822.0,1.60988755]
[1746270850784,13.36525093,1822.1,1822.0,0.51246755]
[1746270851381,1.09742,1822.0,1821.9,4.62743]
[1746270851580,2.70862,1822.0,1821.9,4.62743]
[1746270851778,2.70862,1822.0,1821.9,5.13989755]
[1746270852081,6.42662,1822.0,1821.9,5.13989755]
[1746270854587,9.63442,1822.0,1821.9,4.04246755]
[1746270854786,9.63442,1822.0,1821.9,5.13994755]
[1746270855088,9.63442,1822.0,1821.9,4.62748]
[1746270857286,13.27622782,1822.0,1821.9,4.62748]
[1746270861489,13.27622782,1822.0,1821.9,3.53]
[1746270864191,13.27622782,1822.0,1821.9,4.62748]
[1746270864897,15.80158761,1822.0,1821.9,4.62748]
[1746270868298,13.09296761,1822.0,1821.9,7.88444755]
[1746270869705,6.9258,1822.0,1821.9,7.88444755]
[1746270869906,8.02322,1822.0,1821.9,7.88444755]
[1746270870999,9.63772,1822.0,1821.9,7.88444755]
[1746270871198,9.63772,1822.0,1821.9,6.78696755]
[1746270871402,9.63772,1822.0,1821.9,3.53]
[1746270873108,15.10507093,1822.0,1821.9,3.53]
[1746270873606,11.89727093,1822.0,1821.9,3.53]
[1746270873806,15.10507093,1822.0,1821.9,3.53]
[1746270874006,15.10507093,1822.0,1821.9,4.62748]
[1746270875310,15.10507093,1822.0,1821.9,5.97888]
[1746270876210,15.80486354,1822.0,1821.9,5.97888]
[1746270879712,15.80486354,1822.0,1821.9,6.49134755]
[1746270881509,14.70744354,1822.0,1821.9,6.49134755]
[1746270882517,13.09294354,1822.0,1821.9,6.49134755]
[1746270887118,8.06533706,1822.0,1821.9,9.69914755]
[1746270887321,8.06533706,1822.0,1821.9,6.49134755]
[1746270889117,4.34733706,1822.0,1821.9,6.49134755]
[1746270890320,4.34733706,1822.0,1821.9,14.69914755]
[1746270890909,3.64754445,1822.0,1821.9,14.69914755]
[1746270891619,3.64754445,1822.0,1821.9,9.69914755]
[1746270892617,3.64754445,1822.0,1821.9,9.18668]
[1746270892922,3.64754445,1822.0,1821.9,9.69914755]
[1746270894726,8.49934445,1822.3,1822.2,1.09729]
[1746270894924,8.49934445,1822.3,1822.2,5.13275755]
[1746270895123,12.21734445,1822.3,1822.2,5.13275755]
[1746270898127,12.21734445,1822.3,1822.2,4.62029]
[1746270898327,12.21734445,1822.3,1822.2,5.13275755]
[1746270898527,15.14174445,1822.3,1822.2,5.13275755]
[1746270901730,11.4942,1822.3,1822.2,5.13275755]
[1746270905431,8.5698,1822.3,1822.2,5.13275755]
[1746270905838,5.362,1822.3,1822.2,5.13275755]
[1746270907543,6.8954,1822.3,1822.2,5.13275755]
[1746270908234,3.1774,1822.3,1822.2,5.13275755]
[1746270909341,6.8954,1822.3,1822.2,5.13275755]
[1746270915142,6.8954,1822.3,1822.2,5.84120786]
[1746270915851,6.8954,1822.3,1822.2,5.32874031]
[1746270918253,6.8954,1822.3,1822.2,4.62029]
[1746270920356,7.99263,1822.3,1822.2,4.62029]
[1746270920555,11.8954,1822.3,1821.9,3.519]
[1746270920749,3.2401,1822.2,1821.9,4.61645]
[1746270920946,2.80218,1822.1,1822.0,1.09741]
[1746270921356,4.26588,1822.1,1822.0,1.09741]
[1746270922357,7.98388,1822.1,1822.0,1.09741]
[1746270923458,6.8865,1822.1,1822.0,1.09741]
[1746270924159,13.05360013,1822.1,1822.0,1.09741]
[1746270925459,14.15096013,1822.1,1822.0,1.09741]
[1746270928362,1.09742,1822.0,1821.9,4.61643]
[1746270928558,2.79712,1822.0,1821.9,5.12889755]
[1746270929157,6.51512,1822.0,1821.9,5.12889755]
[1746270930865,10.85804355,1822.0,1821.9,5.12889755]
[1746270934366,10.15829435,1822.0,1821.9,5.12889755]
[1746270940374,10.15829435,1822.0,1821.9,4.03146755]
[1746270940568,10.15829435,1822.0,1821.9,3.519]
[1746270940771,10.15829435,1822.0,1821.9,4.61648]
[1746270942174,9.06087435,1822.0,1821.9,5.12894755]
[1746270942482,9.06087435,1822.0,1821.9,7.99624755]
[1746270949484,9.06087435,1822.0,1821.9,4.47724755]
[1746270949680,10.15829435,1822.0,1821.9,0.51246755]
[1746270950379,10.15829435,1822.0,1821.9,1.60994755]
[1746270950581,1.09748,1821.9,1821.8,4.6135]
[1746270950782,5.57868,1821.9,1821.8,4.6135]
[1746270950983,5.57868,1821.9,1821.8,5.12596755]
[1746270951182,9.29668,1821.9,1821.8,5.12596755]
[1746270951576,9.29668,1821.9,1821.8,3.516]
[1746270952485,9.29668,1821.9,1821.8,4.61354]
[1746270954192,13.63964145,1821.9,1821.8,4.61354]
[1746270955497,13.63964145,1821.9,1821.8,3.516]
[1746270956201,13.63964145,1821.9,1821.8,4.61354]
[1746270957789,13.63964145,1821.9,1821.8,5.12600755]
[1746270959893,13.63964145,1821.9,1821.8,6.62030755]
[1746270960501,19.10699238,1821.9,1821.8,6.62030755]
[1746270961097,15.17561238,1821.9,1821.8,6.62030755]
[1746270961400,15.17561238,1821.9,1821.8,8.11740755]
[1746270961601,15.17561238,1821.9,1821.8,9.72200755]
[1746270962404,16.27309238,1821.9,1821.8,9.72200755]
[1746270962705,16.27309238,1821.9,1821.8,5.52556755]
[1746270963003,19.28989238,1821.9,1821.8,4.02846755]
[1746270964801,9.47958,1821.9,1821.8,3.516]
[1746270966907,9.47958,1821.9,1821.8,4.61354]
[1746270968008,24.74851161,1821.9,1821.8,4.61354]
[1746270968309,24.74851161,1821.9,1821.8,3.516]
[1746270970703,24.74851161,1821.9,1821.8,4.02846755]
[1746270972507,17.46919426,1821.9,1821.8,4.02846755]
[1746270973203,17.46919426,1821.9,1821.8,5.12600755]
[1746270974310,20.67699426,1821.9,1821.8,5.12600755]
[1746270974609,17.66019426,1821.9,1821.8,5.12600755]
[1746270975107,17.66019426,1821.9,1821.8,6.65610755]
[1746270975911,19.06869426,1821.9,1821.8,6.65610755]
[1746270976212,15.86089426,1821.9,1821.8,6.65610755]
[1746270976409,19.06869426,1821.9,1821.8,6.65610755]
[1746270978517,19.06869426,1821.9,1821.8,6.14364]
[1746270978710,19.06869426,1821.9,1821.8,6.65610755]
[1746270981315,17.66019426,1821.9,1821.8,6.65610755]
[1746270981516,16.56271426,1821.9,1821.8,6.65610755]
[1746270981909,13.35491426,1821.9,1821.8,6.65610755]
[1746270983014,11.70761426,1821.9,1821.8,11.65610755]
[1746270983619,11.70761426,1821.9,1821.8,6.65610755]
[1746270985716,3.718,1821.9,1821.8,6.65610755]
[1746270991219,3.65014924,1822.0,1821.9,1.09748]
[1746270991520,3.65014924,1822.0,1821.9,4.75094755]
[1746270992122,7.36814924,1822.0,1821.9,4.75094755]
[1746270996421,9.10214924,1822.0,1821.9,4.75094755]
[1746270997824,5.452,1822.0,1821.9,4.75094755]
[1746271009225,3.718,1822.0,1821.9,4.75094755]
[1746271009824,5.3765,1822.0,1821.9,4.75094755]
[1746271010222,1.6585,1822.0,1821.9,4.75094755]
[1746271012622,1.6585,1822.0,1821.9,4.23848]
[1746271012828,1.6585,1822.0,1821.9,4.75094755]
[1746271019224,1.6585,1822.0,1821.9,7.95874755]
[1746271021232,2.75592,1822.0,1821.9,1.09748]
[1746271021425,1.6585,1822.0,1821.9,1.09748]
[1746271021825,4.5294,1822.0,1821.9,1.09748]
[1746271022133,9.34482,1822.0,1821.9,1.09748]
[1746271022334,14.34482,1822.0,1821.8,4.6135]
[1746271022525,1.7031,1821.9,1821.8,4.6135]
[1746271023134,6.00838,1821.9,1821.8,3.516]
[1746271023338,6.00838,1821.9,1821.8,4.61354]
[1746271024137,9.72638,1821.9,1821.8,4.61354]
[1746271024434,15.90141056,1821.9,1821.8,4.61354]
[1746271024734,15.90141056,1821.9,1821.8,5.32140684]
[1746271025534,14.80393056,1821.9,1821.8,5.32140684]
[1746271026834,15.90141056,1821.9,1821.8,5.32140684]
[1746271028533,12.69361056,1821.9,1821.8,5.32140684]
[1746271028736,15.90141056,1821.9,1821.8,5.32140684]
[1746271033433,12.69361056,1821.9,1821.8,5.32140684]
[1746271033633,15.90141056,1821.9,1821.8,5.32140684]
[1746271034334,12.69361056,1821.9,1821.8,5.32140684]
[1746271034638,15.90141056,1821.9,1821.8,5.32140684]
[1746271035039,15.90141056,1821.9,1821.8,0.70786684]
[1746271035542,1.0976,1821.7,1821.6,4.60663]
[1746271035740,1.0976,1821.7,1821.6,5.11909755]
[1746271036242,7.9901,1821.7,1821.6,3.509]
[1746271036433,15.1003,1821.7,1821.2,3.509]
[1746271036636,4.30564,1821.3,1821.2,3.509]
[1746271037135,8.02364,1821.3,1821.2,3.509]
[1746271037540,11.19814,1821.3,1821.2,3.509]
[1746271041745,15.53957316,1821.3,1821.2,3.509]
[1746271045248,11.19814,1821.3,1821.2,3.509]
[1746271046656,7.99034,1821.3,1821.2,3.509]
[1746271046954,11.19814,1821.3,1821.2,3.509]
[1746271050459,9.69714,1821.3,1821.2,5.11936755]
[1746271050656,6.9258,1821.3,1821.2,5.11936755]
[1746271051161,8.02364,1821.3,1821.2,6.85646755]
[1746271051355,8.02364,1821.3,1821.2,5.75856755]
[1746271051557,8.02364,1821.3,1821.2,4.02146755]
[1746271051853,9.51304,1821.3,1821.2,4.02146755]
[1746271053260,11.02074,1821.3,1821.2,4.02146755]
[1746271053561,11.02074,1821.3,1821.2,3.509]
[1746271056751,8.02364,1821.3,1821.2,5.11936755]
[1746271056950,8.02364,1821.3,1821.2,6.74206755]
[1746271059766,6.9258,1821.3,1821.2,6.74206755]
[1746271066271,3.2078,1821.3,1821.2,6.74206755]
[1746271071585,4.8142,1821.4,1821.3,1.09784]
[1746271071880,4.8142,1821.4,1821.3,3.19320755]
[1746271072180,8.5322,1821.4,1821.3,3.19320755]
[1746271073581,8.5322,1821.4,1821.3,1.61030755]
[1746271073973,9.9662,1821.4,1821.3,1.61030755]
[1746271074871,12.49828,1821.4,1821.3,1.61030755]
[1746271075072,11.4005,1821.4,1821.3,1.61030755]
[1746271075782,9.9662,1821.4,1821.3,1.61030755]
[1746271075982,8.5322,1821.4,1821.3,3.31070755]
[1746271077881,8.5322,1821.4,1821.3,4.78540755]
[1746271078381,6.7887,1821.4,1821.3,4.78540755]
[1746271078685,9.9965,1821.4,1821.3,3.08500755]
[1746271079278,11.09428,1821.4,1821.3,1.09784]
[1746271082691,9.9965,1821.4,1821.3,1.09784]
[1746271083493,12.8738513,1821.4,1821.3,1.61030755]
[1746271083686,11.2674513,1821.4,1821.3,8.29740755]
[1746271084080,7.5494513,1821.4,1821.3,8.29740755]
[1746271084284,5.47522387,1821.5,1821.4,1.09778]
[1746271084490,5.47522387,1821.5,1821.4,6.29254755]
[1746271087688,13.93691331,1821.7,1821.6,1.09766]
[1746271087898,3.2078,1821.7,1821.6,5.11312755]
[1746271089992,5.4651,1821.8,1821.7,1.0976]
[1746271090194,3.718,1821.8,1821.7,3.12006755]
[1746271091290,3.718,1821.8,1821.7,7.79436755]
[1746271091489,3.718,1821.8,1821.7,9.50646755]
[1746271092091,8.3987,1822.0,1821.9,1.09748]
[1746271092292,8.3987,1822.0,1821.9,5.11294755]
[1746271092494,8.3987,1822.0,1821.9,4.60048]
[1746271093392,5.1909,1822.0,1821.9,4.60048]
[1746271094397,5.1909,1822.0,1821.9,5.11294755]
[1746271094398,3.718,1822.0,1821.9,5.11294755]
[1746271095796,3.718,1822.0,1821.9,45.91294755]
[1746271097193,1.4395,1822.2,1822.1,1.09736]
[1746271097492,1.4395,1822.2,1822.1,1.60982755]
[1746271097792,1.4395,1822.2,1822.1,1.09736]
[1746271098098,1.4395,1822.2,1822.1,1.60982755]
[1746271098301,5.1575,1822.2,1822.1,1.60982755]
[1746271101002,5.1575,1822.2,1822.1,1.09736]
[1746271101298,5.1575,1822.2,1822.1,1.60982755]
[1746271102205,6.7941,1822.2,1822.1,1.60982755]
[1746271104702,6.7941,1822.2,1822.1,1.09736]
[1746271105490,6.7941,1822.2,1822.1,4.59636]
[1746271108304,5.3546,1822.2,1822.1,6.27286]
[1746271109105,1.6366,1822.2,1822.1,6.27286]
[1746271109407,1.4525,1822.4,1822.1,6.27286]
[1746271109408,1.4525,1822.4,1822.3,1.09723]
[1746271109619,3.1954,1822.4,1822.3,1.09723]
[1746271110111,5.4609,1822.4,1822.3,1.09723]
[1746271110305,5.4609,1822.4,1822.3,4.11443]
[1746271111401,5.4609,1822.4,1822.3,44.91443]
[1746271113707,5.4609,1822.4,1822.3,45.42689755]
[1746271115104,1.7429,1822.4,1822.3,45.42689755]
[1746271115314,4.4555,1822.6,1822.5,1.09711]
[1746271115511,4.4555,1822.6,1822.5,5.10857755]
[1746271115905,4.4555,1822.6,1822.5,45.90857755]
[1746271116106,8.1735,1822.6,1822.5,45.90857755]
[1746271116512,8.1735,1822.6,1822.5,45.39611]
[1746271119616,9.27055,1822.6,1822.5,45.39611]
[1746271119915,8.1735,1822.6,1822.5,45.39611]
[1746271120312,9.27055,1822.6,1822.5,45.39611]
[1746271120516,8.1735,1822.6,1822.5,45.39611]
[1746271123420,8.1735,1822.6,1822.5,4.59611]
[1746271129729,8.1735,1822.6,1822.5,5.10857755]
[1746271132732,5.32,1822.6,1822.5,5.10857755]
[1746271133030,3.718,1822.6,1822.5,6.77097755]
[1746271133631,3.718,1822.6,1822.5,47.57097755]
[1746271134230,4.1067,1822.7,1822.6,1.09705]
[1746271134432,4.1067,1822.7,1822.6,6.18341755]
[1746271134635,2.5157,1822.7,1822.6,6.88744409]
[1746271135136,6.2337,1822.7,1822.6,47.68744409]
[1746271140451,4.5409,1822.7,1822.6,47.68744409]
[1746271141537,6.1295,1822.7,1822.6,47.68744409]
[1746271142242,6.1295,1822.7,1822.6,46.03104409]
[1746271142442,7.5344,1822.7,1822.6,46.03104409]
[1746271144245,7.5344,1822.7,1822.6,45.32701755]
[1746271144544,7.5344,1822.7,1822.6,46.03108241]
[1746271145337,6.1295,1822.7,1822.6,46.03108241]
[1746271145640,4.8792,1823.0,1822.7,1.60945755]
[1746271145947,5.47522387,1823.1,1823.0,1.09681]
[1746271146136,5.47522387,1823.1,1823.0,1.60927755]
[1746271146339,5.47522387,1823.1,1823.0,43.11334241]
[1746271146537,7.28980124,1823.1,1823.0,46.32114241]
[1746271146839,7.28980124,1823.1,1823.0,47.97934241]
[1746271147141,11.00780124,1823.1,1823.0,47.97934241]
[1746271148145,7.28980124,1823.1,1823.0,47.97934241]
[1746271149736,7.28980124,1823.1,1823.0,47.27527755]
[1746271151241,0.2715,1823.2,1823.1,1.09675]
[1746271151440,0.2715,1823.2,1823.1,6.78821755]
[1746271153351,0.2715,1823.2,1823.1,9.99601755]
[1746271158141,3.9895,1823.2,1823.1,3.2078]
[1746271158347,3.9895,1823.2,1823.1,4.59075]
[1746271158647,8.9895,1823.2,1823.1,4.59075]
[1746271158849,13.5015,1823.2,1823.1,4.59075]
[1746271160054,8.5015,1823.2,1823.1,4.59075]
[1746271161355,8.23,1823.2,1823.1,4.59075]
[1746271164552,17.53449,1823.2,1823.1,3.494]
[1746271165458,16.4378,1823.2,1822.9,1.09685]
[1746271165758,2.7006,1823.1,1822.9,1.09687]
[1746271165959,1.6038,1823.0,1822.9,1.09687]
[1746271166157,6.41861,1823.0,1822.9,1.09687]
[1746271166360,1.09687,1822.9,1822.8,4.58889]
[1746271166559,4.81486,1823.0,1822.9,1.09687]
[1746271166763,1.09687,1822.9,1822.8,4.5889]
[1746271166965,4.81486,1823.0,1822.9,1.09687]
[1746271167165,1.09687,1822.9,1822.8,4.58889]
[1746271168168,4.81487,1822.9,1822.8,4.58889]
[1746271168765,3.718,1822.9,1822.8,4.58889]
[1746271169568,4.81487,1822.9,1822.8,4.58889]
[1746271169769,3.718,1822.9,1822.8,4.58889]
[1746271171070,4.81487,1822.9,1822.8,4.58889]
[1746271175074,3.718,1822.9,1822.8,4.58889]
[1746271175374,4.81487,1822.9,1822.8,5.10135755]
[1746271175773,3.718,1822.9,1822.8,5.10135755]
[1746271177676,4.81487,1822.9,1822.8,5.10135755]
[1746271182281,3.718,1822.9,1822.8,5.10135755]
[1746271182483,5.4342,1822.9,1822.8,6.73205755]
[1746271189286,3.718,1822.9,1822.8,6.73205755]
[1746271190178,0.2716,1823.0,1822.9,1.09687]
[1746271190380,0.2716,1823.0,1822.9,3.33083755]
[1746271191078,3.9896,1823.0,1822.9,3.33083755]
[1746271199790,3.718,1823.0,1822.9,3.33083755]
[1746271200195,1.6824,1823.1,1823.0,1.09681]
[1746271200389,1.954,1823.1,1823.0,4.49777755]
[1746271201199,5.672,1823.1,1823.0,4.49777755]
[1746271203281,1.954,1823.1,1823.0,4.49777755]
[1746271203482,1.954,1823.1,1823.0,7.70557755]
[1746271203691,0.2716,1823.1,1823.0,7.70557755]
[1746271205697,0.2716,1823.1,1823.0,17.48727755]
[1746271205988,1e-05,1823.1,1823.0,17.48727755]
[1746271208204,1e-05,1823.1,1823.0,12.48727755]
[1746271208889,1.74051,1823.1,1823.0,14.19397755]
[1746271210605,1.74051,1823.1,1823.0,12.48727755]
[1746271210806,3.17561,1823.1,1823.0,11.03857755]
[1746271211100,6.89361,1823.1,1823.0,11.03857755]
[1746271212896,6.89361,1823.1,1823.0,9.59877755]
[1746271213104,6.89361,1823.1,1823.0,9.08631]
[1746271214501,5.45851,1823.1,1823.0,10.62431]
[1746271214700,5.45851,1823.1,1823.0,5.84261]
[1746271215002,5.45851,1823.1,1823.0,6.35507755]
[1746271216597,5.45851,1823.1,1823.0,4.81707755]
[1746271216798,6.98121,1823.1,1823.0,4.30461]
[1746271220307,6.98121,1823.1,1823.0,1.09681]
[1746271222607,6.9812,1823.1,1823.0,1.09681]
[1746271224408,5.4585,1823.1,1823.0,1.60927755]
[1746271224609,5.4585,1823.1,1823.0,3.31437755]
[1746271227717,5.4585,1823.1,1823.0,44.11437755]
[1746271229214,3.718,1823.1,1823.0,44.11437755]
[1746271230115,1.6324,1823.3,1823.2,1.09669]
[1746271230316,1.6324,1823.3,1823.2,8.30495755]
[1746271231216,5.3504,1823.3,1823.2,8.30495755]
[1746271231412,5.3504,1823.3,1823.2,10.48109751]
[1746271232215,3.718,1823.3,1823.2,12.08739751]
[1746271233013,3.718,1823.3,1823.2,52.88739751]
[1746271233216,1.6838,1823.4,1823.3,1.09663]
[1746271233513,1.6838,1823.4,1823.3,1.60909755]
[1746271233713,1.6838,1823.4,1823.3,2.31323751]
[1746271236517,1.6838,1823.4,1823.3,5.52103751]
[1746271238220,5.4018,1823.4,1823.3,5.52103751]
[1746271238421,5.4018,1823.4,1823.3,7.13903751]
[1746271238821,5.4018,1823.4,1823.3,7.57321488]
[1746271239210,1.6838,1823.4,1823.3,7.57321488]
[1746271239415,6.9258,1823.7,1823.6,1.09645]
[1746271239611,9.848,1823.7,1823.6,45.38445]
[1746271239822,13.49647885,1823.7,1823.6,46.08858996]
[1746271240624,10.28867885,1823.7,1823.6,46.08858996]
[1746271240826,11.86767885,1823.7,1823.6,46.08858996]
[1746271242722,8.2192,1823.7,1823.6,46.08858996]
[1746271243517,8.2192,1823.7,1823.6,46.60105751]
[1746271247623,6.7035,1823.7,1823.6,46.60105751]
[1746271248016,5.297,1823.7,1823.6,46.60105751]
[1746271248221,5.297,1823.7,1823.6,48.19445751]
[1746271249118,1.579,1823.7,1823.6,48.19445751]
[1746271250223,5.297,1823.7,1823.6,48.19445751]
[1746271251220,1.579,1823.7,1823.6,48.19445751]
[1746271251422,1.579,1823.7,1823.6,46.60105751]
[1746271252118,5.297,1823.7,1823.6,46.60105751]
[1746271252621,5.297,1823.7,1823.6,46.08858996]
[1746271252824,5.297,1823.7,1823.6,46.60105751]
[1746271256121,5.297,1823.7,1823.6,46.08858996]
[1746271256831,5.297,1823.7,1823.6,46.60105751]
[1746271257331,5.297,1823.7,1823.6,46.08858996]
[1746271259833,5.297,1823.7,1823.6,46.08579612]
[1746271260536,5.297,1823.7,1823.6,46.59826367]
[1746271260732,5.297,1823.7,1823.6,49.68966367]
[1746271262133,5.297,1823.7,1823.6,49.6900285]
[1746271262733,5.297,1823.7,1823.6,48.98831755]
[1746271263834,3.718,1823.7,1823.6,48.98831755]
[1746271264133,4.6273,1823.9,1823.8,1.09633]
[1746271264434,4.6273,1823.9,1823.8,1.60879755]
[1746271264628,4.6273,1823.9,1823.8,1.09633]
[1746271264827,4.6273,1823.9,1823.8,2.62623]
[1746271265231,5.3403,1823.9,1823.8,4.24013]
[1746271266334,5.3403,1823.9,1823.8,4.23405999]
[1746271267534,5.3403,1823.9,1823.8,4.74652754]
[1746271275435,5.3403,1823.9,1823.8,3.13262754]
[1746271276030,5.3403,1823.9,1823.8,4.87182754]
[1746271277934,5.3403,1823.9,1823.8,1.60272754]
[1746271281643,5.3403,1823.9,1823.8,3.32592754]
[1746271281838,3.718,1823.9,1823.8,3.32592754]
[1746271282245,1.718,1824.0,1823.9,1.09627]
[1746271282436,1.718,1824.0,1823.9,6.51773755]
[1746271282936,1.718,1824.0,1823.9,9.72553755]
[1746271283136,5.436,1824.0,1823.9,9.72553755]
[1746271285547,3.718,1824.0,1823.9,9.72553755]
[1746271286943,5.4243,1824.0,1823.9,9.72553755]
[1746271292551,5.4243,1824.0,1823.9,5.09373755]
[1746271292756,5.4243,1824.0,1823.9,3.483]
[1746271292757,11.8865,1824.0,1823.9,3.483]
[1746271292949,11.8865,1824.0,1823.9,4.57927]
[1746271294254,12.98271,1824.0,1823.9,4.19663604]
[1746271294462,12.98939029,1824.0,1823.9,1.57136891]
[1746271294650,12.98939029,1824.0,1823.9,0.85773287]
[1746271294853,12.98939029,1824.0,1823.9,1.571113]
[1746271296364,12.98939029,1824.0,1823.9,2.667383]
[1746271299062,7.98939029,1824.0,1823.9,2.667383]
[1746271299362,23.86420264,1824.0,1823.9,2.667383]
[1746271302563,22.76799264,1824.0,1823.9,2.667383]
[1746271302861,7.59226693,1824.0,1823.9,2.667383]
[1746271304460,7.59226693,1824.0,1823.9,3.17985055]
[1746271305065,4.42376693,1824.0,1823.9,3.17985055]
[1746271306259,7.38160216,1824.0,1823.9,3.17985055]
[1746271309569,7.38160216,1824.0,1823.9,11.38765055]
[1746271309765,7.38160216,1824.0,1823.9,10.67427042]
[1746271310176,3.72468029,1824.0,1823.9,5.67427042]
[1746271311678,3.72468029,1824.0,1823.9,7.29867042]
[1746271312880,3.72468029,1824.0,1823.9,4.09087042]
[1746271316282,3.72468029,1824.0,1823.9,7.29867042]
[1746271317885,3.72468029,1824.0,1823.9,8.78897042]
[1746271324689,2.9313,1824.4,1824.3,1.09603]
[1746271324890,4.5893,1824.4,1824.3,4.57803]
[1746271325076,8.3073,1824.4,1824.3,4.57803]
[1746271325689,8.31135481,1824.4,1824.3,6.17243]